[Event "Amsterdam Chess Open 2024"]
[Site "Amsterdam"]
[Date "2024.11.02"]
[Round "4.6"]
[White "Lahaye, Rick"]
[Black "Moss, Guy"]
[Result "1-0"]
[ECO "A25"]
[WhiteElo "2400"]
[BlackElo "2175"]
[Annotator "TA"]
[PlyCount "103"]
[EventDate "2024.10.31"]
[EventType "swiss"]
[EventCountry "NED"]
[SourceTitle "playchess.com"]
[Source "ChessBase"]
[SourceQuality "1"]
[TimeControl "5400+30"]

{[%evp 18,103,0,0,22,12,17,12,8,-42,-57,-55,-25,-70,-28,-32,52,10,32,18,43,42,167,33,72,0,0,0,8,0,82,56,125,92,128,93,147,147,216,110,299,280,340,327,692,407,449,412,472,475,743,499,725,488,596,243,1050,1038,1032,976,1047,1016,933,1028,1265,1228,1352,1247,1300,1307,6137,3703,29964,7834,5727,5373,29981,29982,29986,29987,29990,29982,29982,29983,29983,29984,29983,29975]} 1. c4 {[%emt 0:00:03]} Nf6 {[%emt 0:00:05]} 2. Nc3 {[%emt 0:00:14]} e5 {[%emt 0:00:06]} 3. e3 {[%emt 0:00:45]} Nc6 {[%emt 0:02:29]} 4. g4 {[%emt 0:00:30]} h6 {[%emt 0:10:51]} 5. Bg2 {[%emt 0:00:33]} Bb4 {[%emt 0:03:55]} 6. Nd5 {[%emt 0:00:45] A25: English Opening vs King's Indian with ...Nc6 but without early d3.} Nxd5 {[%emt 0:00:25]} 7. cxd5 {[%emt 0:00:15]} Ne7 {[%emt 0:00:30]} 8. Nf3 $146 {[%emt 0:05:23]} ({Predecessor:} 8. a3 Bd6 9. d4 Ng6 10. dxe5 Nxe5 11. h4 Qe7 12. h5 b6 13. f4 Nc4 14. Qd3 {1-0 Andersen,J (2398)-Vinter Schou,U (2297) DEN-chT 2122 59th 2021 (6.3)}) 8... Ng6 {[%emt 0:10:49]} 9. h4 {[%emt 0:10:11]} h5 {[%emt 0:02:24]} 10. g5 {[%emt 0:00:31]} Bc5 {[%emt 0:08:07]} 11. d4 {[%emt 0:04:54]} exd4 {[%emt 0:00:05]} 12. Nxd4 {[%emt 0:00:13]} d6 {[%emt 0:00:28]} 13. f4 {[%emt 0:00:40]} (13. Bd2 $11) 13... Bg4 {[%emt 0:05:08]} 14. Qd3 {[%emt 0:00:44]} Qd7 {[%emt 0:06:09]} 15. b4 {[%emt 0:03:13]} Bxd4 {[%emt 0:04:06]} (15... Bxb4+ $5 16. Kf2 Bc5 $17) 16. Qxd4 {[%emt 0:00:31]} Qa4 {[%emt 0:14:51]} (16... O-O $15) 17. Bd2 {[%emt 0:03:25]} O-O-O {[%emt 0:00:17]} 18. Rc1 {[%emt 0:02:19]} (18. Qxg7 $2 Qb5 19. Bf1 Qxd5 $19) 18... Rhe8 {[%emt 0:02:55]} 19. Kf2 {[%emt 0:00:18]} (19. Qxg7 $2 Qb5 (19... Nxf4 20. O-O $17) 20. Bf1 Qxd5 $19) 19... Re7 {[%emt 0:08:18]} (19... Rd7 $14) 20. Kg3 {[%emt 0:01:46]} (20. Qxg7 $18 {Qc3 would now be deadly.} Kb8 21. Qc3) 20... Rde8 $14 {[%emt 0:02:37]} 21. Rc3 {[%emt 0:05:53]} (21. Qxg7 Rxe3+ (21... Qxa2 $2 22. Qc3 $18) 22. Bxe3 Rxe3+ 23. Kh2 Qe8) (21. Rhe1 $16 f5 22. Rc3 (22. gxf6 gxf6 23. e4 Rf7 $16)) 21... Kb8 $11 {[%emt 0:02:32]} 22. a3 {[%emt 0:06:35]} (22. Qxg7 Qxa2 23. Qd4 Bf5 $11) 22... Qb5 {[%emt 0:01:02]} 23. Re1 {[%emt 0:00:51]} f5 {[%emt 0:06:11]} (23... Qd7 $1 $11) 24. Rc4 {[%emt 0:07:18]} (24. gxf6 gxf6 25. a4 (25. Qxf6 $2 Rg8 $19) 25... Qd7 $17 (25... Qxa4 26. e4 $17)) 24... b6 {[%emt 0:03:30]} (24... Re4 $14 25. Bxe4 fxe4 (25... Rxe4 $2 26. Qxg7 Re7 27. Qg8+ Qe8 28. Qxe8+ Rxe8 29. b5 $18)) 25. Rc6 $16 {[%emt 0:03:25]} Qa6 {[%emt 0:01:52]} 26. Qc3 {[%emt 0:00:44]} Qb7 {[%emt 0:01:10]} (26... Bd1 $142 27. Bf1 (27. Rxd1 Qe2 $11) 27... Qa4) 27. a4 $16 {[%emt 0:01:06]} Rd7 {[%emt 0:00:07]} (27... a6 $16 {was called for.} 28. Qd4 Rg8) 28. Rc1 {[%emt 0:01:39]} ({White should play} 28. a5 $18) 28... Rg8 $2 {[%emt 0:00:59]} (28... a6 $16 {was worth a try.} 29. Qd4 Rg8) 29. Qd3 $18 {[%emt 0:00:50]} Ne7 {[%emt 0:00:14]} 30. a5 {[%emt 0:01:05]} Qc8 $2 {[%emt 0:02:29]} (30... Rgd8 31. Bc3 Ng6 32. axb6 axb6) 31. R6c2 {[%emt 0:01:27]} Qb7 {[%emt 0:00:35]} 32. b5 {[%emt 0:01:50]} Re8 {[%emt 0:00:28]} 33. axb6 {[%emt 0:01:09]} cxb6 {[%emt 0:00:11]} (33... Qxb6 $142 34. Bc3 Nc8) 34. Rc6 {[%emt 0:01:37]} Nc8 {[%emt 0:00:27]} (34... Rdd8 $142 35. Rc7 Qxc7) 35. Bc3 {[%emt 0:00:17]} Rc7 {[%emt 0:00:32]} 36. Bd4 {[%emt 0:00:27]} (36. Be5 $142 Ree7 37. Rxd6 (37. Bxd6 Nxd6 38. Kh2 Rxc6 $11) 37... Rxe5 38. Rdc6 (38. Rxc7 Qxc7 39. Rc6 Qe7 $18) 38... Rxc6 39. dxc6 (39. bxc6 Qc7 $18)) 36... Rxc6 $2 {[%emt 0:00:08]} (36... Rd7 37. Qc4 Rde7) 37. dxc6 $18 {[%emt 0:00:37]} Qc7 {[%emt 0:00:07]} 38. Bxg7 {[%emt 0:00:35]} Ne7 {[%emt 0:01:16]} 39. Bf6 {[%emt 0:00:44]} Ng6 {[%emt 0:00:11]} 40. Bd5 {[%emt 0:03:20]} Nf8 {[%emt 0:00:54]} 41. Qb3 {[%emt 0:02:09]} Nh7 {[%emt 0:00:35]} 42. Bd4 {[%emt 0:00:31]} Nf8 {[%emt 0:00:13]} 43. Re1 {[%emt 0:00:35]} Qh7 {[%emt 0:00:41]} 44. Bf7 {[%emt 0:01:53]} Re7 {[%emt 0:00:06]} 45. Bg8 {[%emt 0:00:20]} Qg6 {[%emt 0:00:07]} 46. Bf6 {[%emt 0:00:37]} Rc7 {[%emt 0:00:17]} 47. Qd5 {[%emt 0:00:22]} Qe8 {[%emt 0:00:45]} 48. Qxd6 {[%emt 0:00:32]} Kc8 {[%emt 0:00:04]} 49. Be5 {[%emt 0:00:27]} Qe7 {[%emt 0:00:23]} 50. Qxc7+ {[%emt 0:00:18]} Qxc7 {[%emt 0:00:03]} 51. Bxc7 {[%emt 0:00:07]} Kxc7 {[%emt 0:00:07]} 52. Bf7 {[%emt 0:00:05]} 1-0

[Event "Amsterdam Chess Open 2024"]
[Site "Amsterdam"]
[Date "2024.11.02"]
[Round "4.7"]
[White "Johannesson, Oliver"]
[Black "Bagrationi, Alexander"]
[Result "1/2-1/2"]
[ECO "B30"]
[WhiteElo "2216"]
[BlackElo "2391"]
[Annotator "TA"]
[PlyCount "68"]
[EventDate "2024.10.31"]
[EventType "swiss"]
[EventCountry "NED"]
[SourceTitle "playchess.com"]
[Source "ChessBase"]
[SourceQuality "1"]
[TimeControl "5400+30"]

{[%evp 9,68,0,112,109,114,-10,-10,-20,0,-7,0,0,0,0,0,0,0,-16,-24,-12,-12,-21,-21,-23,22,9,49,0,0,0,0,0,29,29,29,37,36,27,27,27,27,27,27,24,24,24,24,24,24,17,17,17,17,0,0,0,0,0,0,0,0]} 1. e4 {[%emt 0:00:55]} c5 {[%emt 0:00:53]} 2. Nf3 {[%emt 0:00:45]} Nc6 {[%emt 0:01:11]} 3. Bb5 {[%emt 0:01:01]} Nf6 {[%emt 0:00:18]} 4. Nc3 {[%emt 0:01:55]} Nd4 {[%emt 0:00:41]} 5. Bd3 {[%emt 0:03:56]} d5 {[%emt 0:06:50] [#]} (5... d6 $11 {remains equal.}) 6. e5 $1 $16 {[%emt 0:26:08]} Nd7 {[%emt 0:07:06] [#]} 7. e6 {[%emt 0:01:07]} ({White has to play} 7. Nxd4 $1 $16 {[%cal Oe5e6] e6! is the strong threat.} cxd4 8. e6) 7... Nxe6 $11 {[%emt 0:01:57]} 8. Nxd5 {[%emt 0:00:24]} g6 {[%emt 0:01:15]} 9. O-O {[%emt 0:00:59]} Bg7 {[%emt 0:00:09]} 10. Re1 {[%emt 0:01:06]} O-O {[%emt 0:00:28]} 11. Bc4 {[%emt 0:01:03]} Nb6 {[%emt 0:04:44]} 12. Nxb6 {[%emt 0:03:13]} axb6 {[%emt 0:02:10]} 13. d3 {[%emt 0:01:45]} Qd6 {[%emt 0:03:50]} 14. Qe2 {[%emt 0:07:00]} Bd7 {[%emt 0:03:29]} 15. c3 {[%emt 0:03:41]} b5 {[%emt 0:16:02]} 16. Bb3 {[%emt 0:04:16]} Bc6 {[%emt 0:01:06]} 17. Bxe6 {[%emt 0:05:00]} fxe6 {[%emt 0:01:03]} (17... Bxf3 {feels hotter.} 18. Qxf3 fxe6 19. Qxb7 b4) 18. Qxe6+ {[%emt 0:00:40]} (18. Ng5 $1 $14) 18... Qxe6 {[%emt 0:00:29]} 19. Rxe6 {[%emt 0:00:07]} Rfd8 {[%emt 0:05:48]} 20. Be3 {[%emt 0:12:04]} ({Of course not} 20. Rxe7 Rxd3 21. Bg5 b4 $15) 20... Rxd3 {[%emt 0:13:44][%cal Oa8a2] Hoping for ...Rxa2!} 21. Bxc5 {[%emt 0:00:33]} ({Worse is} 21. Rxe7 Rxa2 22. Rc1 (22. Rxg7+ $2 Kxg7 23. Re1 c4 $19) 22... Rxb2 $19) 21... Bxf3 {[%emt 0:01:31]} 22. gxf3 {[%emt 0:00:07]} Rd2 {[%emt 0:00:07]} 23. Rxe7 {[%emt 0:07:21]} Rxb2 {[%emt 0:06:08]} 24. Rxb7 {[%emt 0:02:50]} Bxc3 {[%emt 0:00:59]} 25. Rd1 {[%emt 0:02:11]} b4 {[%emt 0:01:11]} 26. Rdd7 {[%emt 0:01:07]} Rbxa2 {[%emt 0:00:21]} 27. Bxb4 {[%emt 0:00:46]} Bxb4 {[%emt 0:00:15]} 28. Rxb4 {[%emt 0:00:11][%mdl 4096] Endgame. KRR-KRR} R2a7 {[%emt 0:00:05]} 29. Rbb7 {[%emt 0:00:25]} Rxb7 {[%emt 0:00:05] The position is equal.} 30. Rxb7 {[%emt 0:00:03]} Ra5 {[%emt 0:00:21]} 31. Kg2 {[%emt 0:00:31]} Rg5+ {[%emt 0:00:05]} 32. Kh3 {[%emt 0:00:22]} Rh5+ {[%emt 0:00:28]} 33. Kg3 {[%emt 0:00:12]} Rg5+ {[%emt 0:00:07]} 34. Kh3 {[%emt 0:00:59]} Rh5+ {[%emt 0:00:07] Weighted Error Value: White=0.13 (very precise) /Black=0.13 (very precise) .  Mistake:       	White=2     	---        Inaccurate:     	---       	Black=3      OK:         	White=7     	Black=18     Best:        	White=2     	Black=3} 1/2-1/2

[Event "Amsterdam Chess Open 2024"]
[Site "Amsterdam"]
[Date "2024.11.02"]
[Round "4.8"]
[White "Pham, Khoi"]
[Black "Ratsma, Midas"]
[Result "1/2-1/2"]
[ECO "D41"]
[WhiteElo "2264"]
[BlackElo "2280"]
[Annotator "RC"]
[PlyCount "104"]
[EventDate "2024.10.31"]
[EventType "swiss"]
[EventCountry "NED"]
[SourceTitle "playchess.com"]
[Source "ChessBase"]
[SourceQuality "1"]
[TimeControl "5400+30"]

1. d4 {[%emt 0:00:26]} d5 {[%emt 0:00:04]} 2. c4 {[%emt 0:00:04]} e6 {[%emt 0:00:04]} 3. Nc3 {[%emt 0:00:25]} Nf6 {[%emt 0:00:15]} 4. cxd5 {[%emt 0:00:06]} Nxd5 {[%emt 0:00:11]} 5. e4 {[%emt 0:01:24]} Nxc3 {[%emt 0:00:04]} 6. bxc3 {[%emt 0:00:07]} c5 {[%emt 0:00:05]} 7. Nf3 {[%emt 0:00:41]} cxd4 {[%emt 0:00:08]} 8. cxd4 {[%emt 0:00:04]} Nc6 {[%emt 0:00:08]} 9. Be2 {[%emt 0:11:37]} Bb4+ {[%emt 0:02:50]} 10. Bd2 {[%emt 0:03:00]} Bxd2+ {[%emt 0:00:06]} 11. Qxd2 {[%emt 0:00:04]} O-O {[%emt 0:00:07]} 12. Rc1 {[%emt 0:02:11]} Qd6 {[%emt 0:00:26]} 13. O-O {[%emt 0:00:58]} Rd8 {[%emt 0:00:37]} 14. Rfd1 {[%emt 0:00:40]} h6 {[%emt 0:00:23]} 15. Qe3 {[%emt 0:03:07]} Bd7 {[%emt 0:01:54]} 16. h4 {[%emt 0:09:58]} Rac8 {[%emt 0:00:12]} 17. e5 {[%emt 0:16:28]} Qf8 {[%emt 0:00:34]} 18. Qe4 {[%emt 0:01:40]} Nb4 {[%emt 0:21:59]} 19. Qxb7 {[%emt 0:05:28]} Nxa2 {[%emt 0:04:36]} 20. Rxc8 {[%emt 0:01:03]} Bxc8 {[%emt 0:00:03]} 21. Qxa7 {[%emt 0:05:07]} Nc3 {[%emt 0:01:26]} 22. Rd2 {[%emt 0:00:44]} Qb4 {[%emt 0:08:39]} 23. Qc7 {[%emt 0:01:59]} Rf8 {[%emt 0:00:28]} 24. Qc5 {[%emt 0:05:04]} Qb1+ {[%emt 0:02:46]} 25. Kh2 {[%emt 0:00:04]} Nxe2 {[%emt 0:05:03]} 26. Rxe2 {[%emt 0:00:14]} Qf5 {[%emt 0:03:40]} 27. Qa7 {[%emt 0:04:46]} Qb1 {[%emt 0:11:37]} 28. Qa3 {[%emt 0:05:35]} Bb7 {[%emt 0:06:27]} 29. Qb2 {[%emt 0:01:39]} Qf1 {[%emt 0:00:51]} 30. Re1 {[%emt 0:03:46]} Qa6 {[%emt 0:00:04]} 31. Nd2 {[%emt 0:01:04]} Bd5 {[%emt 0:01:03]} 32. Ne4 {[%emt 0:01:34]} Qd3 {[%emt 0:06:33]} 33. Re3 {[%emt 0:00:44]} Qd1 {[%emt 0:00:29]} 34. Qb4 {[%emt 0:02:58]} Rc8 {[%emt 0:11:45]} 35. Qe7 {[%emt 0:03:36]} Qxd4 {[%emt 0:06:45]} 36. Nf6+ {[%emt 0:02:38]} Kh8 {[%emt 0:00:04]} 37. Nxd5 {[%emt 0:00:36]} Qxd5 {[%emt 0:00:36]} 38. Qxf7 {[%emt 0:00:22]} Rc4 {[%emt 0:00:52]} 39. g3 {[%emt 0:02:23]} Rc1 {[%emt 0:01:02]} 40. Qf3 {[%emt 0:00:04]} Qxf3 {[%emt 0:02:05]} 41. Rxf3 {[%emt 0:00:05]} Rc5 {[%emt 0:01:22]} 42. Rf8+ {[%emt 0:01:09]} Kh7 {[%emt 0:00:03]} 43. f4 {[%emt 0:00:07]} Kg6 {[%emt 0:00:51]} 44. Re8 {[%emt 0:02:22]} Kf5 {[%emt 0:00:29]} 45. Kh3 {[%emt 0:02:35]} h5 {[%emt 0:00:12]} 46. Re7 {[%emt 0:00:28]} g6 {[%emt 0:00:29]} 47. Rf7+ {[%emt 0:01:31]} Ke4 {[%emt 0:00:04]} 48. Rf6 {[%emt 0:00:26]} Kf3 {[%emt 0:00:38]} 49. Rxe6 {[%emt 0:00:28]} Rc1 {[%emt 0:00:21]} 50. Kh2 {[%emt 0:00:04]} Rc2+ {[%emt 0:00:10]} 51. Kh3 {[%emt 0:00:08]} Rc1 {[%emt 0:00:14]} 52. Kh2 {[%emt 0:00:04]} Rc2+ {[%emt 0:00:10]} 1/2-1/2

[Event "Amsterdam Chess Open 2024"]
[Site "Amsterdam"]
[Date "2024.11.02"]
[Round "4.9"]
[White "Andringa, Arjo"]
[Black "Kazarian, Anna-Maja"]
[Result "0-1"]
[ECO "C06"]
[WhiteElo "1949"]
[BlackElo "2178"]
[Annotator "RC"]
[PlyCount "70"]
[EventDate "2024.10.31"]
[EventType "swiss"]
[EventCountry "NED"]
[SourceTitle "playchess.com"]
[Source "ChessBase"]
[SourceQuality "1"]
[TimeControl "5400+30"]

1. e4 {[%emt 0:00:02]} e6 {[%emt 0:00:33]} 2. d4 {[%emt 0:00:06]} d5 {[%emt 0:00:04]} 3. Nd2 {[%emt 0:00:05]} Be7 {[%emt 0:01:34]} 4. c3 {[%emt 0:03:32]} Nf6 {[%emt 0:02:33]} 5. e5 {[%emt 0:00:15]} Nfd7 {[%emt 0:00:04]} 6. Bd3 {[%emt 0:00:20]} c5 {[%emt 0:00:11]} 7. Ne2 {[%emt 0:00:42]} Nc6 {[%emt 0:04:16]} 8. Nf3 {[%emt 0:03:10]} Qb6 {[%emt 0:03:37]} 9. a3 {[%emt 0:06:42]} cxd4 {[%emt 0:06:49]} 10. cxd4 {[%emt 0:00:47]} f6 {[%emt 0:03:36]} 11. exf6 {[%emt 0:02:07]} Nxf6 {[%emt 0:03:05]} 12. O-O {[%emt 0:02:09]} Bd7 {[%emt 0:01:03]} 13. b4 {[%emt 0:04:43]} O-O {[%emt 0:03:55]} 14. Ng3 {[%emt 0:05:45]} Bd6 {[%emt 0:06:22]} 15. Bb2 {[%emt 0:05:00]} Ne7 {[%emt 0:08:35]} 16. Ne5 {[%emt 0:06:41]} Bb5 {[%emt 0:01:15]} 17. Re1 {[%emt 0:04:25]} Bxd3 {[%emt 0:02:21]} 18. Nxd3 {[%emt 0:00:58]} Bxg3 {[%emt 0:10:06]} 19. hxg3 {[%emt 0:00:49]} Ne4 {[%emt 0:00:48]} 20. Qg4 {[%emt 0:08:29]} Nf5 {[%emt 0:04:09]} 21. f3 {[%emt 0:14:49]} Nexg3 {[%emt 0:09:12]} 22. Nc5 {[%emt 0:00:33]} Rfe8 {[%emt 0:09:29]} 23. Re5 {[%emt 0:03:37]} a5 {[%emt 0:01:39]} 24. Bc3 {[%emt 0:03:52]} axb4 {[%emt 0:00:13]} 25. Be1 {[%emt 0:06:18]} bxa3 {[%emt 0:09:56]} 26. Bxg3 {[%emt 0:00:38]} Qb2 {[%emt 0:01:36]} 27. Ree1 {[%emt 0:01:38]} Ne3 {[%emt 0:01:28]} 28. Rxe3 {[%emt 0:03:22]} Qxa1+ {[%emt 0:00:05]} 29. Re1 {[%emt 0:00:06]} Qc3 {[%emt 0:01:23]} 30. Nxe6 {[%emt 0:02:25]} Re7 {[%emt 0:04:30]} 31. Qg5 {[%emt 0:01:18]} Rd7 {[%emt 0:00:59]} 32. Nc5 {[%emt 0:07:37]} Rf7 {[%emt 0:00:02]} 33. Qxd5 {[%emt 0:01:41]} a2 {[%emt 0:00:03]} 34. Na4 {[%emt 0:01:36]} Qxe1+ {[%emt 0:00:19]} 35. Bxe1 {[%emt 0:00:03]} a1=Q {[%emt 0:00:12]} 0-1

[Event "Amsterdam Chess Open 2024"]
[Site "Amsterdam"]
[Date "2024.11.02"]
[Round "4.10"]
[White "Abdulla, Murad"]
[Black "Saine, Zachary"]
[Result "1-0"]
[ECO "C54"]
[WhiteElo "2329"]
[BlackElo "2038"]
[Annotator "RC"]
[PlyCount "61"]
[EventDate "2024.10.31"]
[EventType "swiss"]
[EventCountry "NED"]
[SourceTitle "playchess.com"]
[Source "ChessBase"]
[SourceQuality "1"]
[TimeControl "5400+30"]

1. e4 {[%emt 0:00:49]} e5 {[%emt 0:01:46]} 2. Nf3 {[%emt 0:00:20]} Nc6 {[%emt 0:00:08]} 3. Bc4 {[%emt 0:00:23]} Bc5 {[%emt 0:00:08]} 4. d3 {[%emt 0:00:48]} Nf6 {[%emt 0:00:11]} 5. Nbd2 {[%emt 0:01:33]} d6 {[%emt 0:02:33]} 6. c3 {[%emt 0:00:52]} a5 {[%emt 0:00:44]} 7. O-O {[%emt 0:07:58]} Ba7 {[%emt 0:00:29]} 8. Re1 {[%emt 0:03:00]} O-O {[%emt 0:01:49]} 9. Bb3 {[%emt 0:04:21]} Ng4 {[%emt 0:05:25]} 10. Re2 {[%emt 0:03:50]} Kh8 {[%emt 0:00:33]} 11. Nf1 {[%emt 0:03:46]} f5 {[%emt 0:03:52]} 12. exf5 {[%emt 0:02:23]} Bxf5 {[%emt 0:12:30]} 13. Ng3 {[%emt 0:08:02]} Nxf2 {[%emt 0:07:44]} 14. Rxf2 {[%emt 0:02:15]} Bxf2+ {[%emt 0:00:32]} 15. Kxf2 {[%emt 0:00:20]} Bg4 {[%emt 0:02:21]} 16. Qe2 {[%emt 0:21:36]} Bxf3 {[%emt 0:35:35]} 17. gxf3 {[%emt 0:00:26]} d5 {[%emt 0:00:37]} 18. a4 {[%emt 0:06:57]} e4 {[%emt 0:05:15]} 19. dxe4 {[%emt 0:06:04]} Ne5 {[%emt 0:00:16]} 20. f4 {[%emt 0:03:38]} dxe4 {[%emt 0:02:11]} 21. Kg2 {[%emt 0:07:29]} Nd3 {[%emt 0:02:02]} 22. f5 {[%emt 0:02:25]} Qh4 {[%emt 0:09:48]} 23. Be6 {[%emt 0:02:22]} Nc5 {[%emt 0:03:59]} 24. Bc4 {[%emt 0:01:05]} Rae8 {[%emt 0:00:09]} 25. Be3 {[%emt 0:00:34]} Nd7 {[%emt 0:00:50]} 26. Rf1 {[%emt 0:00:27]} Ne5 {[%emt 0:00:47]} 27. Rf4 {[%emt 0:01:14]} Qf6 {[%emt 0:00:02]} 28. Be6 {[%emt 0:01:54]} Ng6 {[%emt 0:01:23]} 29. Rxe4 {[%emt 0:00:38]} c6 {[%emt 0:00:40]} 30. Bd4 {[%emt 0:00:53]} Nh4+ {[%emt 0:00:06]} 31. Kh3 {[%emt 0:00:52]} 1-0

[Event "Amsterdam Chess Open 2024"]
[Site "Amsterdam"]
[Date "2024.11.02"]
[Round "4.11"]
[White "Heij, Jacco"]
[Black "Mikko, Rondo"]
[Result "0-1"]
[ECO "D53"]
[WhiteElo "1979"]
[BlackElo "1966"]
[Annotator "RC"]
[PlyCount "90"]
[EventDate "2024.10.31"]
[EventType "swiss"]
[EventCountry "NED"]
[SourceTitle "playchess.com"]
[Source "ChessBase"]
[SourceQuality "1"]
[TimeControl "5400+30"]

1. d4 {[%emt 0:00:03]} d5 {[%emt 0:00:05]} 2. c4 {[%emt 0:00:07]} e6 {[%emt 0:00:07]} 3. Nf3 {[%emt 0:00:06]} Nf6 {[%emt 0:00:08]} 4. Nc3 {[%emt 0:00:46]} a6 {[%emt 0:00:53]} 5. Bg5 {[%emt 0:02:55]} Be7 {[%emt 0:00:30]} 6. e3 {[%emt 0:00:15]} dxc4 {[%emt 0:01:01]} 7. a4 {[%emt 0:06:42]} O-O {[%emt 0:03:14]} 8. Bxc4 {[%emt 0:00:47]} h6 {[%emt 0:00:16]} 9. Bh4 {[%emt 0:04:44]} c5 {[%emt 0:01:16]} 10. dxc5 {[%emt 0:07:37]} Qa5 {[%emt 0:01:34]} 11. O-O {[%emt 0:01:47]} Nc6 {[%emt 0:01:19]} 12. Qe2 {[%emt 0:04:30]} Qxc5 {[%emt 0:01:28]} 13. Rfd1 {[%emt 0:03:45]} Rd8 {[%emt 0:04:09]} 14. Rxd8+ {[%emt 0:06:09]} Bxd8 {[%emt 0:00:02]} 15. Rd1 {[%emt 0:01:45]} Be7 {[%emt 0:03:07]} 16. e4 {[%emt 0:05:19]} Nd7 {[%emt 0:14:25]} 17. Bxe7 {[%emt 0:01:27]} Qxe7 {[%emt 0:00:09]} 18. e5 {[%emt 0:04:12]} Nc5 {[%emt 0:00:20]} 19. Qe3 {[%emt 0:04:50]} Bd7 {[%emt 0:02:33]} 20. Rd6 {[%emt 0:08:25]} b6 {[%emt 0:00:05]} 21. Nd4 {[%emt 0:08:52]} Qe8 {[%emt 0:09:28]} 22. Ne4 {[%emt 0:07:34]} Nxe5 {[%emt 0:01:47]} 23. Ba2 {[%emt 0:01:51]} Ng4 {[%emt 0:04:34]} 24. Qe2 {[%emt 0:04:21]} Nxe4 {[%emt 0:00:12]} 25. Qxe4 {[%emt 0:00:29]} Nf6 {[%emt 0:00:15]} 26. Qb7 {[%emt 0:04:06]} Rb8 {[%emt 0:00:48]} 27. Qxa6 {[%emt 0:03:04]} Ra8 {[%emt 0:01:28]} 28. Qd3 {[%emt 0:00:56]} Rxa4 {[%emt 0:00:48]} 29. Bb1 {[%emt 0:02:02]} e5 {[%emt 0:13:14]} 30. Nb3 {[%emt 0:01:02]} e4 {[%emt 0:02:12]} 31. Qd2 {[%emt 0:00:36]} Qd8 {[%emt 0:04:15]} 32. g3 {[%emt 0:02:26]} Qc7 {[%emt 0:00:24]} 33. Bc2 {[%emt 0:01:36]} Ra8 {[%emt 0:01:42]} 34. h4 {[%emt 0:01:29]} Be6 {[%emt 0:00:18]} 35. Rd4 {[%emt 0:00:30]} e3 {[%emt 0:00:54]} 36. Qd3 {[%emt 0:00:49]} Rc8 {[%emt 0:02:00]} 37. Bd1 {[%emt 0:00:25]} exf2+ {[%emt 0:02:09]} 38. Kxf2 {[%emt 0:00:02]} h5 {[%emt 0:02:08]} 39. Kg2 {[%emt 0:00:49]} g6 {[%emt 0:00:39]} 40. Nd2 {[%emt 0:00:40]} Qc1 {[%emt 0:00:58]} 41. Nb3 {[%emt 0:00:35]} Qxb2+ {[%emt 0:01:29]} 42. Nd2 {[%emt 0:00:15]} Kg7 {[%emt 0:00:32]} 43. Kg1 {[%emt 0:00:47]} Rc3 {[%emt 0:00:13]} 44. Qb1 {[%emt 0:00:27]} Rxg3+ {[%emt 0:00:07]} 45. Kf2 {[%emt 0:00:29]} Qxd4+ {[%emt 0:00:02]} 0-1

[Event "Amsterdam Chess Open 2024"]
[Site "Amsterdam"]
[Date "2024.11.02"]
[Round "4.12"]
[White "Nies, Levi"]
[Black "Van der Meiden, Dirk"]
[Result "1/2-1/2"]
[ECO "B03"]
[WhiteElo "1859"]
[BlackElo "1968"]
[Annotator "RC"]
[PlyCount "26"]
[EventDate "2024.10.31"]
[EventType "swiss"]
[EventCountry "NED"]
[SourceTitle "playchess.com"]
[Source "ChessBase"]
[SourceQuality "1"]
[TimeControl "5400+30"]

1. e4 {[%emt 0:00:03]} Nf6 {[%emt 0:00:10]} 2. e5 {[%emt 0:00:16]} Nd5 {[%emt 0:00:04]} 3. d4 {[%emt 0:00:02]} d6 {[%emt 0:00:04]} 4. c4 {[%emt 0:00:02]} Nb6 {[%emt 0:00:03]} 5. f4 {[%emt 0:00:03]} dxe5 {[%emt 0:00:08]} 6. fxe5 {[%emt 0:00:02]} Bf5 {[%emt 0:00:15]} 7. Nc3 {[%emt 0:01:30]} e6 {[%emt 0:00:12]} 8. Nf3 {[%emt 0:00:22]} Nc6 {[%emt 0:00:06]} 9. Be3 {[%emt 0:00:04]} Bg4 {[%emt 0:00:15]} 10. Be2 {[%emt 0:00:26]} Bxf3 {[%emt 0:00:11]} 11. gxf3 {[%emt 0:00:07]} Qh4+ {[%emt 0:00:08]} 12. Bf2 {[%emt 0:01:00]} Qf4 {[%emt 0:00:08]} 13. Qc1 {[%emt 0:09:52]} Qf5 {[%emt 0:00:27]} 1/2-1/2